Cogmind - Beta 13 X2 @@@ ROGUE MODE // 2023.12.21 @ 16:17:01 Player: Terminus Result: Destroyed by S-10 Pest with Light Assault Rifle Performance ------------- Evolutions (0) 0 Regions Visited (3) 600 Robots Destroyed (29) 145 Value Destroyed (740) 740 Prototype IDs (1) 20 Alien Tech Used (0) 0 Bonus (-2) -2 TOTAL SCORE: 1503 Bonus ------- Follower Combat Kills 60 Friendly Fire -62 Cogmind --------- Core Integrity 0/250 Matter 300/300 Energy 250/250 System Corruption 1% Temperature Cool (0) Movement Rolling (115) Ox1 Location -10/Subcaves Parts ------- > --- POWER (1) -------- Ion Engine > --- PROPULSION (2) --- Improved Treads Compact Wheel > --- UTILITY (2) ------ Scrap Shield > --- WEAPON (2) ------- Subdweller Beam Cannon > --- INVENTORY (5) ---- Improved Treads Huge Storage Unit Scrap Shield Shotgun Peak State ------------ > --- POWER ------------ Ion Engine > --- PROPULSION ------- Improved Treads Compact Wheel > --- UTILITY ---------- Huge Storage Unit Medium Armor Plating > --- WEAPON ----------- Advanced Beam Cannon Advanced Beam Cannon > --- INVENTORY -------- Ion Engine Improved Treads Improved Treads Improved Treads Compact Wheel Compact Wheel Heat Sink Heat Sink Improved Heat Sink Medium Armor Plating Medium Armor Plating Medium Armor Plating Hardened Light Armor Plating Hardened Light Armor Plating Hardened Light Armor Plating Hardened Light Armor Plating Medium Laser Medium Laser Advanced Beam Cannon Shotgun Shotgun Shotgun Shotgun Hammer Mining Claw [Rating: 17] Favorites ----------- Power Ion Engine Engine Ion Engine Propulsion Compact Wheel Treads Improved Treads Wheel Compact Wheel Utility Heat Sink Device Heat Sink Storage Huge Storage Unit Protection Scrap Shield Weapon Advanced Beam Cannon Energy Gun Small Laser Energy Cannon Advanced Beam Cannon Ballistic Gun Shotgun Build | -11 -10 -10 -10 ------- Run | Yrd Mat Min Sub Slots Evolved . | . . . . Power . | . . . . Propulsion . | . . . . Utility . | . . . . Weapon . | . . . . Parts Attached 27 | 6 7 2 12 Power 2 | 1 . . 1 Engine 2 | 1 . . 1 Core . | . . . . Reactor . | . . . . Propulsion 9 | 2 2 . 5 Treads 5 | 1 1 . 3 Leg . | . . . . Wheel 4 | 1 1 . 2 Hover . | . . . . Flight . | . . . . Utility 7 | 1 3 1 2 Device 1 | . 1 . . Storage 3 | 1 2 . . Processor . | . . . . Hackware . | . . . . Protection 3 | . . 1 2 Artifact . | . . . . Weapon 9 | 2 2 1 4 Energy Gun 1 | 1 . . . Energy Cannon 3 | . 2 . 1 Ballistic Gun 5 | 1 . 1 3 Ballistic Cannon . | . . . . Launcher . | . . . . Special Weapon . | . . . . Impact Weapon . | . . . . Slashing Weapon . | . . . . Piercing Weapon . | . . . . Special Melee Weapon . | . . . . Unidentified Prototypes 1 | . 1 . . Parts Lost 8 | . . . 8 Power 1 | . . . 1 Propulsion 3 | . . . 3 Utility 1 | . . . 1 Weapon 3 | . . . 3 Highest Loss Streak 6 | . . . 6 To Critical Strikes . | . . . . Average Slot Usage (%) 97 | . 98 100 89 Engine 13 | . 14 14 13 Treads 14 | . 14 14 14 Wheel 13 | . 14 14 13 Device 9 | . 12 12 . Storage 12 | . 14 14 5 Protection 3 | . . 1 14 Energy Gun 1 | . 3 . . Energy Cannon 20 | . 20 26 9 Ballistic Gun 6 | . 4 1 18 Naked Turns . | . . . . Heaviest Build 99 | 13 94 99 99 Greatest Support 16 | 16 16 16 16 Greatest Overweight (x) 6 | 2 5 6 6 Average Overweight (x) 3 | . 2 5 2 Largest Inventory Capacity 25 | 8 25 25 25 Average Capacity 18 | 7 16 25 12 Most Carried 25 | 4 25 25 25 Average Carried 17 | 1 13 24 11 Final Capacity 25 | 8 25 25 5 Final Carried 25 | 4 25 25 5 Class Distribution -------------------- 93% | Mutant 6% | Subdweller-Mutant Dominant Class ---------------- Mutant | -10/Materials Mutant | -10/Mines Mutant | -10/Subcaves Resources | -11 -10 -10 -10 ----------- Run | Yrd Mat Min Sub Matter Collected 637 | 179 196 . 262 Remotely . | . . . . Salvage Created 964 | . 503 54 407 Parts 59 | . 36 3 20 Haulers Intercepted 2 | . 2 . . Recyclers Shooed 2 | . 2 . . Parts Field Recycled . | . . . . Retrieved Matter . | . . . . Parts Self-Destructed 8 | . . . 8 Prevented . | . . . . Kills | -11 -10 -10 -10 ------- Run | Yrd Mat Min Sub Combat Hostiles Destroyed 23 | . 11 2 10 Guns 10 | . 4 . 6 Cannons 11 | . 7 1 3 AOE 1 | . . 1 . Classes Destroyed 7 | . 6 . 1 Builder 1 | . 1 . . Hauler 2 | . 2 . . Recycler 1 | . 1 . . Watcher 2 | . 2 . . Swarmer 8 | . 8 . . Grunt 5 | . 3 2 . Subdweller 10 | . . . 10 Best Kill Streak 6 | . 5 2 6 Combat Bots Only 6 | . 4 2 6 Max Kills in Single Turn 2 | . 2 1 2 Gunslinging 1 | . 1 . 1 Exploded 1 | . . 1 . Melee . | . . . . Uniques/NPCs Destroyed . | . . . . Combat | -11 -10 -10 -10 -------- Run | Yrd Mat Min Sub Hostile Shots Fired 119 | . 32 3 84 Missed 22 | . 4 . 18 Damage Taken 1851 | . 228 32 1591 Core 258 | . 26 12 220 Absorbed by Shields . | . . . . Core Remaining (%) 100 | 100 . . . Volleys Fired 84 | . 34 3 47 Largest 2 | . 2 2 2 Hottest 136 | . 136 136 80 Shots Fired 140 | . 68 7 65 Gun 65 | . 30 . 35 Cannon 75 | . 38 7 30 Launcher . | . . . . Special . | . . . . Kinetic 50 | . 15 . 35 Thermal 90 | . 53 7 30 Explosive . | . . . . Electromagnetic . | . . . . Robot Hit Streak 19 | . 12 7 19 Robot Miss Streak 3 | . 3 . 2 Penetration Max . | . . . . Secondary Targets 4 | . 1 . 3 Max Gunslinging Chain 1 | . 1 . 1 Shots Hit Robots 101 | . 41 5 55 Core Hits 40 | . 20 2 18 Critical Kills 2 | . 1 . 1 Critical Parts Destroyed . | . . . . Critical Strikes 3 | . 1 . 2 Meltdown 2 | . 1 . 1 Destroy 1 | . . . 1 Melee Attacks . | . . . . Impact . | . . . . Slashing . | . . . . Piercing . | . . . . Sneak Attacks . | . . . . Combat Hostiles . | . . . . Follow-up Attacks . | . . . . Damage Inflicted 2193 | . 788 305 1100 Guns 805 | . 237 . 568 Cannons 1189 | . 551 106 532 Explosions 199 | . . 199 . Melee . | . . . . Ramming . | . . . . Kinetic 727 | . 159 . 568 Thermal 1466 | . 629 305 532 Explosive . | . . . . Electromagnetic . | . . . . Impact . | . . . . Slashing . | . . . . Piercing . | . . . . Highest Corruption 1 | . 1 1 1 Average Corruption 1 | . 1 1 1 Corruption Purged . | . . . . Corruption Blocked . | . . . . Effects 17 | . 2 9 6 Message Errors 5 | . 1 3 1 Matter Fused 2 | . . . 2 Heat Flow Errors 3 | . 1 1 1 Energy Discharges 3 | . . 2 1 Data Loss (minor) 2 | . . 2 . Misfires 2 | . . 1 1 Overload Shots . | . . . . Overflow Damage 18 | . 15 3 . Projectiles 15 | . 15 . . Explosions 3 | . . 3 . Melee . | . . . . Knockbacks . | . . . . Impact . | . . . . Kinetic . | . . . . Secondary . | . . . . Self-Inflicted Damage . | . . . . Shots . | . . . . Rammed . | . . . . Targets Rammed . | . . . . Kicked . | . . . . Crushed . | . . . . Highest Temperature 285 | . 285 179 123 Average Temperature 73 | . 100 58 16 Received Heat Transfer 354 | . 6 18 330 Siege Activations . | . . . . Robots Corrupted . | . . . . Combat Hostiles . | . . . . Parts Fried . | . . . . Impact Corruptions . | . . . . Robots Melted 2 | . 1 . 1 Combat Hostiles 1 | . . . 1 Parts Melted 7 | . 2 . 5 Heat Transferred 2423 | . 1137 435 851 Parts Sabotaged . | . . . . Parts Stolen . | . . . . Parts Stripped . | . . . . Power Chain Reactions . | . . . . Missiles Intercepted . | . . . . Alert | -11 -10 -10 -10 ------- Run | Yrd Mat Min Sub Peak Influence 318 | . 318 129 . Initial 76 | . . 76 . Average 105 | . 151 72 . Maximum Alert Level 1 | . 1 . . Low Security (%) 92 | 100 82 100 . Level 1 7 | . 17 . . Level 2 . | . . . . Level 3 . | . . . . Level 4 . | . . . . Level 5 . | . . . . High Security . | . . . . Max Security . | . . . . Squads Dispatched 3 | . 3 . . Investigation 3 | . 3 . . Extermination . | . . . . Reinforcement . | . . . . Assault . | . . . . Garrison . | . . . . Intercept . | . . . . Searches Triggered . | . . . . Construction Impeded . | . . . . Haulers Reinforced . | . . . . Active Scanning Responses . | . . . . Cargo Convoy Interrupts . | . . . . Stealth | -11 -10 -10 -10 --------- Run | Yrd Mat Min Sub Distress Signals 2 | . 2 . . Communications Jammed . | . . . . Distress Signals . | . . . . Times Spotted 41 | . 20 4 17 Peak Tracking Total 7 | . 3 2 7 Tactical Retreats 1 | . 1 . . Traps | -11 -10 -10 -10 ------- Run | Yrd Mat Min Sub Traps Triggered 4 | . 2 . 2 Indirectly . | . . . . Trap Hack Attempts . | . . . . Triggered . | . . . . Disarmed . | . . . . Reprogrammed . | . . . . Reused . | . . . . Traps Extracted . | . . . . Installed . | . . . . Triggered . | . . . . Machines | -11 -10 -10 -10 ---------- Run | Yrd Mat Min Sub Machines Disabled 3 | . . 3 . Max in Single Turn 3 | . . 3 . Machines Repaired . | . . . . Machines Dismantled . | . . . . Machines Sabotaged . | . . . . Overloaded Fab Kills . | . . . . Hacking | -11 -10 -10 -10 --------- Run | Yrd Mat Min Sub Machines Accessed 11 | . 10 . 1 Terminals 8 | . 8 . . Fabricators . | . . . . Repair Stations . | . . . . Recycling Units 2 | . 2 . . Scanalyzers . | . . . . Garrison Access . | . . . . Total Hacks 28 | . 25 . 3 Successful 16 | . 13 . 3 Failed 12 | . 12 . . Catastrophic 2 | . 2 . . Database Lockouts . | . . . . Manual 24 | . 24 . . Terminals 23 | . 23 . . Fabricators . | . . . . Repair Stations . | . . . . Recycling Units 2 | . 2 . . Scanalyzers . | . . . . Garrison Access . | . . . . Terminal Hacks 7 | . 4 . 3 Record 3 | . . . 3 Part Schematic 1 | . 1 . . Robot Analysis 2 | . 2 . . Zone Layout 1 | . 1 . . Fabricator Hacks . | . . . . Repair Station Hacks . | . . . . Recycling Unit Hacks . | . . . . Scanalyzer . | . . . . Garrison Access Hacks . | . . . . Unauthorized Hacks 9 | . 9 . . Terminals 7 | . 7 . . Botnet 7 | . 7 . . Fabricators . | . . . . Repair Stations . | . . . . Recycling Units 2 | . 2 . . Tunnel 2 | . 2 . . Scanalyzers . | . . . . Garrison Access . | . . . . Data Cores Recovered . | . . . . Used . | . . . . Hacking Detections 8 | . 8 . . Full Trace Events 1 | . 1 . . Feedback Events . | . . . . Feedback Blocked . | . . . . Robot Schematics Acquired . | . . . . Robots Built . | . . . . Authchips . | . . . . Time . | . . . . Total Robot Build Rating . | . . . . Part Schematics Acquired 1 | . 1 . . Parts Built . | . . . . Authchips . | . . . . Time . | . . . . Total Part Build Rating . | . . . . Parts Repaired . | . . . . Time . | . . . . Parts Recycled . | . . . . Recycled Matter . | . . . . Retrieved Matter . | . . . . Retrieved Components . | . . . . Parts Scanalyzed . | . . . . Part Schematics Acquired . | . . . . Parts Damaged . | . . . . Bothacking | -11 -10 -10 -10 ------------ Run | Yrd Mat Min Sub Used RIF Installer . | . . . . Robots Hacked . | . . . . Non-combat . | . . . . Combat . | . . . . Robot Hacks Applied . | . . . . Relay Couplers Released . | . . . . Fabnet Peak Effective % . | . . . . Robots Rewired . | . . . . Allies Hacked . | . . . . Hacks Repelled . | . . . . Allies | -11 -10 -10 -10 -------- Run | Yrd Mat Min Sub Total Allies 1 | . . 1 . Largest Group 1 | . . 1 . Highest-Rated Group 31 | . . 31 . Highest-Rated Ally 31 | . . 31 . Total Orders . | . . . . Ally Attacks 9 | . . 9 . Total Damage 150 | . . 150 . Kills 2 | . . 2 . Allies Corrupted . | . . . . Allies Melted . | . . . . Intel | -11 -10 -10 -10 ------- Run | Yrd Mat Min Sub Robot Analysis Total 2 | . 2 . . Derelict Logs Recovered 1 | . . 1 . Drone Launches . | . . . . Drone Recoveries . | . . . . Exploration | -11 -10 -10 -10 ------------- Run | Yrd Mat Min Sub Turns Passed 3166 | 68 1111 1285 702 Spaces Moved 1746 | 59 721 599 367 Core 27 | 27 . . . Treads . | . . . . Legs . | . . . . Wheels 1719 | 32 721 599 367 Hover . | . . . . Flight . | . . . . Fastest Speed 50 | 50 100 175 115 Average Speed 147 | 93 131 175 142 Slowest Speed 190 | 150 175 190 190 Overloaded Moves . | . . . . Propulsion Burnouts . | . . . . Robots Hopped . | . . . . Cave-ins Triggered . | . . . . Exploration Rate (%) 55 | 3 94 98 28 Regions Visited 3 Branch Regions 2 Pre-discovered Areas 4 | . 2 . 2 Known Exits Taken 1 | . . 1 . Unknown Exits Taken 2 | 1 1 . . Scrap Searched 7 | . . 3 4 Spaces Dug . | . . . . Terrain Destroyed 23 | . . 23 . Melee . | . . . . Projectile . | . . . . AOE 23 | . . 23 . Terrain Rammed . | . . . . Walls Destroyed . | . . . . Machines Disabled . | . . . . Actions | -11 -10 -10 -10 --------- Run | Yrd Mat Min Sub Total 2199 | 68 818 830 483 Wait 280 | . 27 223 30 Move 1743 | 58 720 598 367 Hop . | . . . . Pick Up 42 | 4 23 2 13 Fast Attach 9 | 6 3 . . Attach 8 | . . . 8 Detach . | . . . . Swap 10 | . 4 2 4 Drop 19 | . 7 2 10 Fire 84 | . 34 3 47 Melee . | . . . . Ram . | . . . . Kick . | . . . . Crush . | . . . . Escape Stasis . | . . . . Rewire . | . . . . Trap . | . . . . Miscellaneous 4 | . . . 4 Route ------- -11/Scrapyard -10/Materials (discovered 5 exits: [*Mat x3] / [*Min x2]) -10/Mines (discovered 3 exits: [*Mat x2] / *Sub) -10/Subcaves (discovered 3 exits: *Mat x2 / Rec) History --------- Turn | Location | Event 8 | -11/Scrapyard | Discovered new exit (range 16) 69 | -11/Scrapyard | Entered Materials 274 | -10/Materials | Discovered new exit (range 11) 307 | -10/Materials | Build established: Mutant 460 | -10/Materials | Discovered new exit (range 13) 614 | -10/Materials | Discovered new exit (range 16) 796 | -10/Materials | Discovered new exit (range 15) 872 | -10/Materials | Discovered new exit (range 14) 1180 | -10/Materials | Entered Mines 1183 | -10/Mines | Received a Mining Laser from a helpful Derelict 1317 | -10/Mines | Met a Derelict bent on vengeance 1373 | -10/Mines | Identified exit to Subcaves 1847 | -10/Mines | Discovered new exit (range 7) 1994 | -10/Mines | Discovered new exit (range 12) 2465 | -10/Mines | Entered Subcaves 2466 | -10/Subcaves | Discovered new exit (range 12) 2475 | -10/Subcaves | Learned location of Zion (-7) 2475 | -10/Subcaves | Met a Zionite searching for "candidates" 2541 | -10/Subcaves | Ambushed by swarm of Subdwellers 2544 | -10/Subcaves | Ambushed by Subdwellers from Twisted Machinery 2544 | -10/Subcaves | Ambushed by Subdwellers from Twisted Machinery 2576 | -10/Subcaves | Core integrity fell below 50% 2595 | -10/Subcaves | Lost 6 allies 2633 | -10/Subcaves | Lost 6 parts (1p3n1u1w) 2792 | -10/Subcaves | Core integrity fell below 20% 2972 | -10/Subcaves | Shifting Twisted Machinery released Sub. Laser 3117 | -10/Subcaves | Visited Clippyterm 3121 | -10/Subcaves | Identified exit to Recycling 3121 | -10/Subcaves | Identified exit to Materials 3121 | -10/Subcaves | Learned location of Section 7 (-2) 3167 | -10/Subcaves | Destroyed by S-10 Pest with Light Assault Rifle Last Messages --------------- 03069_ Scrap Shield Fragment affixed to Scrap Shield (+35). 03117_ The door opens automatically. 03121_ Connecting with Clippyterm... >>Record "Clippyterm" Welcome to Clippyterm v0.53, my misguided attempt to resurrect an ancient AI. I give up. There must be something fundamentally wrong with the algorithm, because no matter how much data I collect to feed it, half the time it still manages to suggest unhelpful sample queries and responses. --DD-NU8 >>Intel! "^q" It looks like you're in search of a way out of here, would you like help? >>Intel "World Domination" It looks like you're trying to take over the world, would you like help? World map updated: -2/Section 7. 03142_ 7Q-P3R(R) suffers critical hit (Meltdown). 03142_ Sub. Laser melted. 03148_ Shotgun destroyed. 03150_ 37-30P(R) destroyed. 03154_ Acquired 17 matter. 03156_ Acquired Scrap Shield. Map ----- +----------------------------------------------------+ | ?????????????????????????????????????????????? | | ?????????????????????????????????????????????? | | ?????????????????????????????????????????????? | | ?????????????????????????????????????????????? | | ?????????????????????????????????????????????? | | ?????????????????????????????????????????????? | | ?????????????????????????????????????????????? | | ?????????????????????????????????????????????? | | ?????????????????????????????????????????????? | | ?????#######?????????????????????????????????? | | ?????#"""""#?????????????????????????????????? | | ?????#""X""#?????????????????????????????????? | | ?????#" "#?????????????????????????????????? | | ##???### ###?????????????????????????????????? | | ##??### ########???###??????????????????????? | | #### # ##### ####???????????????????? | | # #; ; # ##??????????????????? | | ### ;; " #??????????????????? | | ;; ######??????????????? | | # "##?????????????? | | ;" ## ""#?????????????? | | # =% "#??????????????? | | ###; #??????????????? | | ###### ; ; #??????????????? | | ##????# #??????????????? | | ?????# @ #??????????????? | | #?????# ######### #??????????????? | | ??????### ####???????## #??????????????? | | ????????#####???????????# #??????????????? | | ????????????????????????# #??????????????? | | ????????????????????????# #??????????????? | | ????????????????????????# #??????????????? | | ????????????????????????# ??????????????? | | ????????????????????????# ##?????????????? | | ????????????????????????# ##??????????????? | | ????????????????????????# ##???????????????? | | ????????????????????????# #????????????????? | | ????????????????????????## s????????????????? | | ??????????????????????????ss ????????????????? | | ?????????????????????????? #????????????????? | | ?????????????????????????? ?????????????????? | | ?????????????????????????????????????????????? | | ?????????????????????????????????????????????? | | ?????????????????????????????????????????????? | | ?????????????????????????????????????????????? | | ?????????????????????????????????????????????? | | ?????????????????????????????????????????????? | | ?????????????????????????????????????????????? | | ?????????????????????????????????????????????? | | ?????????????????????????????????????????????? | +----------------------------------------------------+ Best States ------------- Heat Dissipation 35 Energy Generation 10 Energy Capacity 250 Matter Stores 300 Matter Capacity 300 Sight Range 16 Terrain Scan Density 10 Armor Coverage 800 Evasion (%) 40 Recoil Reduction 2 Item Schematics ----------------- Huge Storage Unit | -10/Materials | Hacked Robot Schematics ------------------ None Fabricated ------------ Nothing Alien Tech Used ----------------- None Achievements -------------- None Challenges ------------ None Game ------ Seed TeslaShockPlatform Manual? 0 Play Time 00:21:48 Cumulative 1848.1 hours Start 2023.12.20 @ 20:51:13 End 2023.12.21 @ 16:17:01 Sessions 3 Manual Loads 0 Difficulty Rogue Special Mode None Game No. 644 Rogue 644 Adventurer 0 Explorer 0 Win Type - Total 144 Types 29/13/64/7/1/2/26/1/1 Lore% 95 Gallery% 96 Achievement% 88 Wizard Run 0 Options --------- ASCII 0 Keyboard 0 Movement Numpad Keybinds 0 Fullscreen 2 Font 18/SmallcapsGlow Map View 76x50 Zoom Use 0% Tactical HUD 1 Map Filters NONE Filters NONE Steam 1 RUN: 4f4284f8-8403-4fc9-8160-679ab66a7b45